bitfinex-derivatives/quotes_BTCF0:USTF0_20250929
["timestamp","ask_amount","ask_price","bid_price","bid_amount"]
[1759137469960,1.53900243,112100.0,112090.0,0.1420812]
[1759137471156,0.01642,112100.0,112090.0,0.1420812]
[1759137471359,0.01642,112100.0,112090.0,0.79992083]
[1759137471561,0.01642,112100.0,112090.0,0.5420812]
[1759137471756,1.08909963,112100.0,112090.0,0.5420812]
[1759137473161,1.19903257,112100.0,112090.0,0.5420812]
[1759137474460,1.55983257,112100.0,112090.0,0.05289]
[1759137475563,1.55983257,112100.0,112090.0,0.1420812]
[1759137480161,1.30199294,112100.0,112090.0,0.1420812]
[1759137480356,1.55983257,112100.0,112090.0,0.1420812]
[1759137480663,1.55983257,112100.0,112090.0,0.05289]
[1759137480862,1.56406257,112100.0,112090.0,0.018]
[1759137481254,1.56406257,112100.0,112090.0,0.0660643]
[1759137481460,1.58454668,112100.0,112090.0,0.018]
[1759137482460,0.76970668,112100.0,112090.0,0.018]
[1759137482663,1.58426668,112100.0,112090.0,0.018]
[1759137483064,1.58426668,112100.0,112090.0,0.0660643]
[1759137484668,1.98426668,112100.0,112090.0,0.018]
[1759137486862,1.98431661,112100.0,112090.0,0.018]
[1759137488163,1.31785661,112100.0,112090.0,0.018]
[1759137488369,2.13225661,112100.0,112090.0,0.018]
[1759137488669,2.13305661,112100.0,112090.0,0.018]
[1759137490272,2.39130618,112100.0,112090.0,0.018]
[1759137490870,1.57610618,112100.0,112090.0,0.018]
[1759137491070,2.64915078,112100.0,112090.0,0.018]
[1759137497280,1.83415078,112100.0,112090.0,0.018]
[1759137497477,2.64943078,112100.0,112090.0,0.018]
[1759137498184,1.06001698,112100.0,112090.0,0.018]
[1759137498374,2.39130618,112100.0,112090.0,0.018]
[1759137498571,2.64935078,112100.0,112090.0,0.018]
[1759137504484,1.83415078,112100.0,112090.0,0.018]
[1759137504687,2.65127078,112100.0,112090.0,0.018]
[1759137507483,1.83415078,112100.0,112090.0,0.018]
[1759137507691,2.65127078,112100.0,112090.0,0.03927]
[1759137507886,2.65127078,112100.0,112090.0,0.018]
[1759137512196,2.65079078,112100.0,112090.0,0.018]
[1759137512493,2.39274618,112100.0,112090.0,0.018]
[1759137513094,2.42485367,112100.0,112090.0,0.018]
[1759137515597,1.60398367,112100.0,112090.0,0.0521]
[1759137515800,2.42018367,112100.0,112090.0,0.0521]
[1759137516098,2.42018367,112100.0,112090.0,0.03083]
[1759137516298,2.42018367,112100.0,112090.0,0.018]
[1759137516499,2.42441367,112100.0,112090.0,0.018]
[1759137519493,2.02441367,112100.0,112090.0,0.018]
[1759137523099,1.99230618,112100.0,112090.0,0.018]
[1759137523400,1.47621698,112100.0,112090.0,0.018]
[1759137523597,2.25035078,112100.0,112090.0,0.018]
[1759137530202,2.28245827,112100.0,112090.0,0.018]
[1759137531297,2.25035078,112100.0,112090.0,0.018]
[1759137532599,1.43415078,112100.0,112090.0,0.018]
[1759137532799,2.24899078,112100.0,112090.0,0.018]
[1759137533504,2.60979078,112100.0,112090.0,0.018]
[1759137536099,1.02081698,112100.0,112090.0,0.018]
[1759137536306,1.83130698,112100.0,112090.0,0.04093]
[1759137536606,1.53267618,112100.0,112090.0,0.018]
[1759137536805,2.34851618,112100.0,112090.0,0.018]
[1759137537406,1.53267618,112100.0,112090.0,0.018]
[1759137537606,2.34847618,112100.0,112090.0,0.018]
[1759137538913,1.53267618,112100.0,112090.0,0.018]
[1759137539114,2.34831618,112100.0,112090.0,0.018]
[1759137540210,2.35254618,112100.0,112090.0,0.018]
[1759137540912,2.34827618,112100.0,112090.0,0.0542]
[1759137541309,2.34827618,112100.0,112090.0,0.03127]
[1759137541903,1.53267618,112100.0,112090.0,0.03127]
[1759137542112,2.34819618,112100.0,112090.0,0.03127]
[1759137542413,1.53267618,112100.0,112090.0,0.03127]
[1759137542614,2.34799618,112100.0,112090.0,0.0542]
[1759137543415,1.53267618,112100.0,112090.0,0.0542]
[1759137543615,2.34791618,112100.0,112090.0,0.0542]
[1759137544815,2.34779618,112100.0,112090.0,0.0542]
[1759137545215,1.53267618,112100.0,112090.0,0.0542]
[1759137545420,2.34771618,112100.0,112090.0,0.0542]
[1759137545720,1.53267618,112100.0,112090.0,0.0542]
[1759137545915,1.38457618,112100.0,112090.0,0.0542]
[1759137546217,2.19957618,112100.0,112090.0,0.4542]
[1759137550319,1.94151958,112100.0,112090.0,0.4542]
[1759137552620,1.94151958,112100.0,112090.0,1.210288]
[1759137552621,0.02379967,112100.0,112090.0,1.210288]
[1759137552817,0.02379967,112100.0,112090.0,1.1622237]
[1759137552818,0.83974446,112100.0,112090.0,1.1622237]
[1759137553216,0.7080042,112120.0,112090.0,1.31553488]
[1759137553423,0.7421913,112120.0,112110.0,0.1243452]
[1759137553725,1.5582313,112120.0,112110.0,0.1243452]
[1759137554326,1.5582313,112120.0,112110.0,0.03517]
[1759137556128,1.5592313,112120.0,112110.0,0.03617]
[1759137557130,0.7431913,112120.0,112110.0,0.03617]
[1759137557331,1.5593113,112120.0,112110.0,0.03617]
[1759137557721,0.1243587,112120.0,112110.0,0.7833778]
[1759137557923,0.9193516,112120.0,112110.0,0.7833778]
[1759137558728,0.9193516,112120.0,112110.0,0.5253452]
[1759137559828,1.1773842,112120.0,112110.0,0.5253452]
[1759137562027,0.1035916,112120.0,112110.0,0.5253452]
[1759137562228,1.1771442,112120.0,112110.0,0.5253452]
[1759137562629,0.9191116,112120.0,112110.0,0.5253452]
[1759137562831,1.1771442,112120.0,112110.0,0.5253452]
[1759137563136,1.19769858,112120.0,112110.0,0.5253452]
[1759137566236,0.93922598,112120.0,112110.0,0.7833778]
[1759137566630,0.93922598,112120.0,112110.0,0.5253452]
[1759137567236,1.19725858,112120.0,112110.0,0.5253452]
[1759137567432,1.55805858,112120.0,112110.0,0.03617]
[1759137568940,1.55805858,112120.0,112110.0,0.1253452]
[1759137573246,1.5375042,112120.0,112110.0,0.1253452]
[1759137575944,1.1777042,112120.0,112110.0,0.1253452]
[1759137576145,0.9196672,112120.0,112110.0,0.3833778]
[1759137576644,1.1776998,112120.0,112110.0,0.3833778]
[1759137576848,1.1776998,112120.0,112110.0,0.1253452]
[1759137577052,0.1035872,112120.0,112110.0,0.1253452]
[1759137577356,1.1776198,112120.0,112110.0,0.1253452]
[1759137578454,0.3616198,112120.0,112110.0,0.1253452]
[1759137578654,1.1775398,112120.0,112110.0,0.1253452]
[1759137578951,0.3616198,112120.0,112110.0,0.1253452]
[1759137579156,1.1774198,112120.0,112110.0,0.1253452]
[1759137580050,0.001,112120.0,112110.0,0.3833778]
[1759137580250,0.001,112120.0,112110.0,1.45034223]
[1759137580452,0.8166,112120.0,112110.0,1.05034223]
[1759137580755,0.8166,112120.0,112110.0,0.79230963]
[1759137581256,0.8166,112120.0,112110.0,1.0022104]
[1759137581760,0.001,112120.0,112110.0,0.7441778]
[1759137582360,0.001,112120.0,112110.0,1.06633048]
[1759137583249,0.001,112120.0,112110.0,0.7441778]
[1759137583864,0.001,112120.0,112110.0,0.79231214]
[1759137588759,0.001,112120.0,112110.0,0.53427954]
[1759137588965,0.001,112120.0,112110.0,0.79231214]
[1759137592866,0.001,112120.0,112110.0,0.7441778]
[1759137603370,0.001,112120.0,112110.0,0.79230964]
[1759137603562,0.001,112120.0,112110.0,1.05034224]
[1759137603764,0.0216062,112120.0,112110.0,1.05034224]
[1759137605073,1.23167539,112150.0,112140.0,0.1249413]
[1759137605270,1.29761367,112150.0,112140.0,0.3829739]
[1759137605672,0.48397367,112150.0,112140.0,0.3829739]
[1759137606071,1.30651675,112150.0,112140.0,0.3829739]
[1759137606271,1.39779108,112150.0,112140.0,0.3849739]
[1759137606470,1.39779108,112150.0,112140.0,0.40427853]
[1759137606666,0.59215108,112150.0,112140.0,0.40427853]
[1759137606972,0.04760577,112150.0,112140.0,1.42311113]
[1759137607172,0.027,112150.0,112140.0,1.47124258]
[1759137607766,0.027,112150.0,112140.0,2.28488258]
[1759137608270,0.463357,112160.0,112150.0,0.1249334]
[1759137608466,0.48393302,112160.0,112150.0,0.382966]
[1759137609566,0.48493302,112160.0,112150.0,0.385966]
[1759137610262,0.48493302,112160.0,112150.0,0.38559826]
[1759137610973,0.4937108,112160.0,112150.0,0.38559826]
[1759137611274,0.09112735,112160.0,112150.0,0.64326312]
[1759137611873,0.001,112160.0,112150.0,1.40406312]
[1759137613078,0.001,112160.0,112150.0,2.21750312]
[1759137615576,0.001,112160.0,112150.0,1.40406312]
[1759137615873,0.001,112160.0,112150.0,2.21718312]
[1759137616580,0.001,112160.0,112150.0,1.40406312]
[1759137617072,0.001,112160.0,112150.0,2.21710312]
[1759137617473,0.3608,112180.0,112170.0,0.1020675]
[1759137617679,1.55534988,112190.0,112180.0,0.1232195]
[1759137617879,1.57586739,112190.0,112180.0,0.63854922]
[1759137618079,1.57586739,112190.0,112180.0,0.38088436]
[1759137618268,0.50476253,112190.0,112180.0,0.63854922]
[1759137618472,1.57762739,112190.0,112180.0,0.63854922]
[1759137618672,1.29905411,112190.0,112180.0,0.63854922]
[1759137618868,0.88385411,112190.0,112180.0,0.63854922]
[1759137619079,1.69905411,112190.0,112180.0,0.63854922]
[1759137619373,1.71001411,112190.0,112180.0,0.38288436]
[1759137619569,1.71701411,112190.0,112180.0,0.64054922]
[1759137619967,1.23171764,112190.0,112180.0,0.64054922]
[1759137620169,2.04675764,112190.0,112180.0,0.38288436]
[1759137621080,1.77109278,112190.0,112180.0,0.0341]
[1759137621276,2.02875764,112190.0,112180.0,0.29176486]
[1759137622178,2.00824013,112190.0,112180.0,0.29176486]
[1759137622578,2.00824013,112190.0,112180.0,0.38088436]
[1759137626182,2.02866188,112190.0,112180.0,0.0341]
[1759137627782,1.77099702,112190.0,112180.0,0.0341]
[1759137627984,2.02866188,112190.0,112180.0,0.0341]
[1759137628280,2.28632674,112190.0,112180.0,0.01294]
[1759137628584,0.1025395,112180.0,112170.0,0.29277486]
[1759137628771,0.72100436,112180.0,112170.0,0.29277486]
[1759137629683,0.72800436,112180.0,112170.0,0.29277486]
[1759137631186,0.72800436,112180.0,112170.0,0.1242375]
[1759137631579,0.72800436,112180.0,112170.0,0.38190236]
[1759137632686,0.72800436,112180.0,112170.0,0.29277486]
[1759137633787,0.72800436,112180.0,112170.0,0.03511]
[1759137633988,1.2858995,112180.0,112170.0,0.38190236]
[1759137634186,1.5640381,112180.0,112170.0,0.38190236]
[1759137634381,0.49081324,112180.0,112170.0,0.38190236]
[1759137634589,1.30657324,112180.0,112170.0,0.38190236]
[1759137634888,1.2860995,112180.0,112170.0,0.38190236]
[1759137635187,1.30658535,112180.0,112170.0,0.38190236]
[1759137638589,1.30658535,112180.0,112170.0,0.1242375]
[1759137638791,1.30658535,112180.0,112170.0,0.38190236]
[1759137638983,1.30658535,112180.0,112170.0,0.38182236]
[1759137639187,1.56425021,112180.0,112170.0,0.38182236]
[1759137640286,0.49082535,112180.0,112170.0,0.38182236]
[1759137640492,1.56449021,112180.0,112170.0,0.38182236]
[1759137640991,1.56449021,112180.0,112170.0,0.1241575]
[1759137641188,0.74849021,112180.0,112170.0,0.38182236]
[1759137641389,1.56449021,112180.0,112170.0,0.38182236]
[1759137641894,0.74849021,112180.0,112170.0,0.38182236]
[1759137642191,1.56481021,112180.0,112170.0,0.38182236]
[1759137643092,0.74849021,112180.0,112170.0,0.38182236]
[1759137643292,1.56457021,112180.0,112170.0,0.42995381]
[1759137643695,1.56457021,112180.0,112170.0,0.17228895]
[1759137643898,1.56457021,112180.0,112170.0,0.42995381]
[1759137645997,0.74849021,112180.0,112170.0,0.42995381]
[1759137646197,1.56485021,112180.0,112170.0,0.42995381]
[1759137646700,1.82251507,112180.0,112170.0,0.08316145]
[1759137646887,1.82251507,112180.0,112170.0,0.03503]
[1759137647093,1.82235507,112180.0,112170.0,0.03503]
[1759137647288,1.82235507,112180.0,112170.0,0.17228895]
[1759137650003,1.30702535,112180.0,112170.0,0.17228895]
[1759137650200,1.82235507,112180.0,112170.0,0.17228895]
[1759137651101,1.00615507,112180.0,112170.0,0.17228895]
[1759137651401,1.82187507,112180.0,112170.0,0.17228895]
[1759137652201,1.82187507,112180.0,112170.0,0.08316145]
[1759137653202,1.82187507,112180.0,112170.0,0.03503]
[1759137653401,0.1026775,112170.0,112160.0,0.43024591]
[1759137653603,0.38082821,112170.0,112160.0,0.43024591]
[1759137654201,0.38082821,112170.0,112160.0,0.43020591]
[1759137654801,0.38082821,112170.0,112160.0,0.43120591]
[1759137655300,0.38082821,112170.0,112160.0,0.43220591]
[1759137655499,1.19614821,112170.0,112160.0,0.43220591]
[1759137655800,0.38082821,112170.0,112160.0,0.43220591]
[1759137656005,1.19606821,112170.0,112160.0,0.43220591]
[1759137657605,1.55686821,112170.0,112160.0,0.43220591]
[1759137659202,0.39483585,112170.0,112160.0,0.70801141]
[1759137659408,1.46758071,112170.0,112160.0,0.70801141]
[1759137659600,1.20991585,112170.0,112160.0,0.70801141]
[1759137661114,1.29904335,112170.0,112160.0,0.70801141]
[1759137661814,0.39483585,112170.0,112160.0,0.70801141]
[1759137662114,1.46722071,112170.0,112160.0,0.70801141]
[1759137663316,1.44673486,112170.0,112160.0,0.65987996]
[1759137663811,0.37435,112170.0,112160.0,0.65987996]
[1759137664118,1.44649486,112170.0,112160.0,0.65987996]
[1759137664315,1.53562236,112170.0,112160.0,0.72400004]
[1759137664619,1.53562236,112170.0,112160.0,0.65987996]
[1759137664915,0.4634775,112170.0,112160.0,0.65987996]
[1759137665113,1.53550236,112170.0,112160.0,0.65987996]
[1759137667824,1.53550236,112170.0,112160.0,0.14455024]
[1759137668119,1.53550236,112170.0,112160.0,0.65987996]
[1759137669724,1.53550236,112170.0,112160.0,0.4022151]
[1759137672229,1.53548943,112170.0,112160.0,0.40220217]
[1759137674129,1.55605393,112170.0,112160.0,0.40220217]
[1759137675933,1.55605393,112170.0,112160.0,0.14455024]
[1759137676133,1.55605393,112170.0,112160.0,0.40220217]
[1759137677034,1.53548943,112170.0,112160.0,0.40220217]
[1759137677832,0.4634775,112170.0,112160.0,0.40220217]
[1759137678035,1.2776775,112170.0,112160.0,0.40220217]
[1759137678736,1.2776775,112170.0,112160.0,0.14455024]
[1759137678935,1.2776775,112170.0,112160.0,0.40220217]
[1759137679336,1.29824613,112170.0,112160.0,0.40220217]
[1759137679838,1.2776775,112170.0,112160.0,0.40220217]
[1759137681238,1.2776775,112170.0,112160.0,0.46632225]
[1759137682240,1.93532943,112170.0,112160.0,0.11954072]
[1759137682438,1.96002674,112170.0,112160.0,0.1392877]
[1759137683144,1.96002674,112170.0,112160.0,0.0501523]
[1759137683640,1.95982674,112170.0,112160.0,0.1392877]
[1759137684033,1.95982674,112170.0,112160.0,0.0501523]
[1759137684241,1.95982674,112170.0,112160.0,0.139288]
[1759137684835,1.95982674,112170.0,112160.0,0.161958]
[1759137686145,1.95546674,112170.0,112160.0,0.175408]
[1759137687943,1.14166674,112170.0,112160.0,0.175408]
[1759137688145,1.95526674,112170.0,112160.0,0.175408]
[1759137688546,0.88401481,112170.0,112160.0,0.175408]
[1759137688738,1.95526674,112170.0,112160.0,0.175408]
[1759137689345,1.69761481,112170.0,112160.0,0.175408]
[1759137689643,1.95526674,112170.0,112160.0,0.175408]
[1759137690946,1.14166674,112170.0,112160.0,0.175408]
[1759137691144,1.95550674,112170.0,112160.0,0.175408]
[1759137693243,1.69785481,112170.0,112160.0,0.1272557]
[1759137693546,1.95550674,112170.0,112160.0,0.1272557]
[1759137695246,1.95550674,112170.0,112160.0,0.1272555]
[1759137699445,1.55550674,112170.0,112160.0,0.1272555]
[1759137699844,1.55490674,112170.0,112160.0,0.1272555]
[1759137700651,0.74166674,112170.0,112160.0,0.1272555]
[1759137700851,1.55486674,112170.0,112160.0,0.1272555]
[1759137701351,0.74166674,112170.0,112160.0,0.1272555]
[1759137701551,1.55486674,112170.0,112160.0,0.1272555]
[1759137703353,1.55486674,112170.0,112160.0,0.1754078]
[1759137705851,1.29721481,112170.0,112160.0,0.1754078]
[1759137706152,1.55486674,112170.0,112160.0,0.1754078]
[1759137710152,1.55486674,112170.0,112160.0,0.0862723]
[1759137710658,0.48401481,112170.0,112160.0,0.43305923]
[1759137710857,1.29721481,112170.0,112160.0,0.43305923]
[1759137711758,0.48401481,112170.0,112160.0,0.43305923]
[1759137711947,0.48401481,112170.0,112160.0,0.78490693]
[1759137711948,0.83373731,112170.0,112160.0,0.78490693]
[1759137712258,0.8132,112170.0,112160.0,0.527255]
[1759137712456,0.8132,112170.0,112160.0,0.78490693]
[1759137712860,0.4635395,112180.0,112170.0,0.1237871]
[1759137713061,1.29730454,112180.0,112170.0,0.42957804]
[1759137714263,1.29930454,112180.0,112170.0,0.42957804]
[1759137714760,1.30230454,112180.0,112170.0,0.42957804]
[1759137716056,0.48910454,112180.0,112170.0,0.42957804]
[1759137716252,1.30230454,112180.0,112170.0,0.42957804]
[1759137718863,1.55995647,112180.0,112170.0,0.08279901]
[1759137719164,1.55995647,112180.0,112170.0,0.17192621]
[1759137719768,1.30230454,112180.0,112170.0,0.17192621]
[1759137720065,1.55995647,112180.0,112170.0,0.17192621]
[1759137720467,1.55995647,112180.0,112170.0,0.08279901]
[1759137720967,1.55995647,112180.0,112170.0,0.01317]
[1759137721164,0.1027482,112170.0,112160.0,0.06158901]
[1759137721467,0.1027562,112160.0,112150.0,0.17165847]
[1759137721766,1.17368813,112160.0,112150.0,0.17165847]
[1759137722269,1.17268813,112160.0,112150.0,0.17165847]
[1759137722666,1.53348813,112160.0,112150.0,0.18964598]
[1759137722865,1.53348813,112160.0,112150.0,0.19364598]
[1759137723967,1.2758362,112160.0,112150.0,0.18964598]
[1759137724170,1.2758362,112160.0,112150.0,0.19564598]
[1759137724565,0.4625562,112160.0,112150.0,0.19564598]
[1759137724775,0.4625562,112160.0,112150.0,0.45329791]
[1759137724776,1.2765162,112160.0,112150.0,0.45329791]
[1759137724965,0.37442,112160.0,112150.0,0.45329791]
[1759137725164,1.18834,112160.0,112150.0,0.45329791]
[1759137725470,0.9166762,112160.0,112150.0,0.45329791]
[1759137728073,0.1027562,112160.0,112150.0,0.45329791]
[1759137728273,0.9165562,112160.0,112150.0,0.45329791]
[1759137729674,0.9164362,112160.0,112150.0,0.45329791]
[1759137729974,0.70758033,112170.0,112160.0,0.1237962]
[1759137729975,0.4635535,112170.0,112160.0,0.1237962]
[1759137730173,0.48409814,112170.0,112160.0,0.4295494]
[1759137730477,1.29761814,112170.0,112160.0,0.4295494]
[1759137733273,1.2770735,112170.0,112160.0,0.4295494]
[1759137734280,1.53472891,112170.0,112160.0,0.42955288]
[1759137737585,1.53444891,112170.0,112160.0,0.42955288]
[1759137739893,1.53444891,112170.0,112160.0,0.17189747]
[1759137740192,1.53444891,112170.0,112160.0,0.42955288]
[1759137740697,1.55497317,112170.0,112160.0,0.42955288]
[1759137743301,1.55497317,112170.0,112160.0,0.38145161]
[1759137748296,0.74173317,112170.0,112160.0,0.38145161]
[1759137748494,1.55493317,112170.0,112160.0,0.38145161]
[1759137749300,0.48407776,112170.0,112160.0,0.38145161]
[1759137749499,1.55493317,112170.0,112160.0,0.63910702]
[1759137749700,1.29727776,112170.0,112160.0,0.63910702]
[1759137750802,1.55493317,112170.0,112160.0,0.63910702]
[1759137752800,1.10499967,112170.0,112160.0,0.63910702]
[1759137753400,1.10499967,112170.0,112160.0,0.68720829]
[1759137753601,0.29179967,112170.0,112160.0,0.68720829]
[1759137753801,1.10499967,112170.0,112160.0,0.68720829]
[1759137754001,1.19412787,112170.0,112160.0,0.68720829]
[1759137754302,1.34222787,112170.0,112160.0,0.68720829]
[1759137754500,0.03414426,112170.0,112160.0,0.68720829]
[1759137754701,0.82678,112170.0,112160.0,0.63910702]
[1759137756204,0.9159082,112170.0,112160.0,0.63910702]
[1759137757003,0.82678,112170.0,112160.0,0.99990702]
[1759137758101,0.01362,112170.0,112160.0,0.99990702]
[1759137758400,0.82678,112170.0,112160.0,0.99990702]
[1759137760306,0.9159083,112170.0,112160.0,0.99990702]
[1759137761309,0.9159083,112170.0,112160.0,0.1237962]
[1759137761509,0.93644983,112170.0,112160.0,0.63910702]
[1759137762210,0.9159083,112170.0,112160.0,0.63910702]
[1759137764504,0.9364486,112170.0,112160.0,0.63910702]
[1759137764718,0.9364486,112170.0,112160.0,0.1237962]
[1759137765009,1.2972486,112170.0,112160.0,0.68724049]
[1759137769313,1.2972486,112170.0,112160.0,0.17192967]
[1759137769514,1.2972486,112170.0,112160.0,0.68724049]
[1759137773317,0.4840886,112170.0,112160.0,0.68724049]
[1759137773522,1.2976486,112170.0,112160.0,0.68724049]
[1759137775020,0.4840886,112170.0,112160.0,0.68724049]
[1759137775218,1.2974086,112170.0,112160.0,0.68724049]
[1759137776321,1.2768683,112170.0,112160.0,0.63910702]
[1759137776920,1.29740643,112170.0,112160.0,0.68724537]
[1759137777121,1.55506184,112170.0,112160.0,0.42958996]
[1759137777324,1.55506184,112170.0,112160.0,0.68724537]
[1759137777520,1.55506184,112170.0,112160.0,0.42958996]
[1759137780619,1.55506184,112170.0,112160.0,0.06130835]
[1759137780819,1.95506184,112170.0,112160.0,0.04813835]
[1759137782024,1.95506184,112170.0,112160.0,0.13727265]
[1759137782217,1.95506184,112170.0,112160.0,0.39492806]
[1759137783330,1.95506184,112170.0,112160.0,0.34678971]
[1759137783727,1.95506184,112170.0,112160.0,0.25765541]
[1759137783928,0.0891343,112160.0,112150.0,0.15020545]
[1759137784230,0.38094784,112160.0,112150.0,0.42933086]
[1759137785128,0.38094784,112160.0,112150.0,0.43533086]
[1759137785527,0.38094784,112160.0,112150.0,0.17767545]
[1759137785728,0.38094784,112160.0,112150.0,0.43533086]
[1759137785929,1.39940325,112160.0,112150.0,0.01893]
[1759137786130,1.42434688,112160.0,112150.0,0.006]
[1759137786633,0.098762,112150.0,112140.0,0.38156291]
[1759137786828,1.19019554,112150.0,112140.0,0.38156291]
[1759137787826,1.59019554,112150.0,112140.0,0.02029]
[1759137788033,1.59119554,112150.0,112140.0,0.013]
[1759137788231,1.59119554,112150.0,112140.0,0.27065541]
[1759137788535,1.59115554,112150.0,112140.0,0.27065541]
[1759137788835,1.59115554,112150.0,112140.0,0.013]
[1759137789035,1.59115554,112150.0,112140.0,0.27061541]
[1759137789235,1.66265969,112150.0,112140.0,0.27061541]
[1759137790326,1.67155673,112150.0,112140.0,0.27061541]
[1759137791035,1.67155673,112150.0,112140.0,0.35976671]
[1759137793235,0.85835673,112150.0,112140.0,0.35976671]
[1759137793437,1.6510186,112150.0,112140.0,0.40790506]
[1759137794137,1.6510186,112150.0,112140.0,0.15024965]
[1759137794337,1.6510186,112150.0,112140.0,0.42930506]
[1759137795237,0.8378186,112150.0,112140.0,0.42930506]
[1759137795543,1.6510186,112150.0,112140.0,0.42930506]
[1759137796238,1.65113125,112150.0,112140.0,0.17164965]
[1759137796936,0.83793125,112150.0,112140.0,0.17164965]
[1759137797339,1.65113125,112150.0,112140.0,0.17164965]
[1759137797739,2.01193125,112150.0,112140.0,0.17164965]
[1759137799639,1.19873125,112150.0,112140.0,0.17164965]
[1759137799843,2.01193125,112150.0,112140.0,0.17164965]
[1759137800444,1.19873125,112150.0,112140.0,0.17164965]
[1759137800743,2.01193125,112150.0,112140.0,0.18461965]
[1759137801143,1.21922256,112150.0,112140.0,0.1364813]
[1759137801343,2.03242256,112150.0,112140.0,0.1364813]
[1759137806846,2.03242256,112150.0,112140.0,0.1380113]
[1759137807947,2.01193125,112150.0,112140.0,0.16321965]
[1759137812346,1.19873125,112150.0,112140.0,0.16321965]
[1759137812542,2.01193125,112150.0,112140.0,0.16321965]
[1759137812846,0.94096319,112150.0,112140.0,0.18614965]
[1759137813048,1.92674925,112150.0,112140.0,0.44391771]
[1759137813349,1.94727301,112150.0,112140.0,0.44391771]
[1759137813743,1.94731301,112150.0,112140.0,0.44391771]
[1759137813944,1.68954495,112150.0,112140.0,0.44391771]
[1759137814351,1.66902119,112150.0,112140.0,0.44391771]
[1759137814951,1.75816469,112150.0,112140.0,0.44391771]
[1759137815258,1.77870295,112150.0,112140.0,0.39577936]
[1759137815853,0.96550295,112150.0,112140.0,0.39577936]
[1759137816052,1.77866295,112150.0,112140.0,0.39577936]
[1759137816852,1.11360295,112150.0,112140.0,0.39577936]
[1759137817150,1.77866295,112150.0,112140.0,0.39577936]
[1759137819455,1.37866295,112150.0,112140.0,0.39577936]
[1759137831066,0.56550285,112150.0,112140.0,0.39577936]
[1759137831362,1.37858285,112150.0,112140.0,0.39577936]
[1759137833466,1.37858285,112150.0,112140.0,0.4439384]
[1759137836369,1.37854285,112150.0,112140.0,0.4439384]
[1759137837270,1.37854285,112150.0,112140.0,0.18617034]
[1759137837468,1.37854285,112150.0,112140.0,0.4439384]
[1759137838070,1.37854285,112150.0,112140.0,0.18617034]
[1759137838269,1.37854285,112150.0,112140.0,0.4439384]
[1759137839370,0.56550285,112150.0,112140.0,0.4439384]
[1759137839568,1.37850285,112150.0,112140.0,0.4439384]
[1759137842473,1.37850285,112150.0,112140.0,0.18617034]
[1759137842672,1.37850285,112150.0,112140.0,0.4080384]
[1759137842873,1.63627091,112150.0,112140.0,0.15027034]
[1759137843374,1.63627091,112150.0,112140.0,0.1021113]
[1759137844173,1.63627091,112150.0,112140.0,0.39510936]
[1759137845176,1.37850285,112150.0,112140.0,0.39510936]
[1759137849881,1.37842285,112150.0,112140.0,0.39510936]
[1759137857684,1.52652285,112150.0,112140.0,0.44327597]
[1759137857981,1.37842285,112150.0,112140.0,0.44327597]
[1759137858282,1.63617745,112150.0,112140.0,0.44326251]
[1759137860080,1.54703405,112150.0,112140.0,0.44326251]
[1759137860385,1.63617595,112150.0,112140.0,0.44326251]
[1759137861687,0.73411405,112150.0,112140.0,0.44326251]
[1759137861885,1.54695405,112150.0,112140.0,0.44326251]
[1759137862184,0.73411405,112150.0,112140.0,0.3950959]
[1759137862380,1.54691405,112150.0,112140.0,0.3950959]
[1759137864476,1.54691405,112150.0,112140.0,0.44326316]
[1759137864680,1.28915945,112150.0,112140.0,0.44326316]
[1759137864885,1.54691405,112150.0,112140.0,0.44326316]
[1759137865282,0.47635945,112150.0,112140.0,0.70101776]
[1759137865586,1.28911945,112150.0,112140.0,0.70101776]
[1759137865787,1.54687405,112150.0,112140.0,0.70101776]
[1759137866590,1.63601595,112150.0,112140.0,0.18550856]
[1759137866888,1.63601595,112150.0,112140.0,0.70101776]
[1759137868582,1.63601595,112150.0,112140.0,0.44326316]
[1759137868788,1.63601595,112150.0,112140.0,0.3950959]
[1759137873492,1.63601595,112150.0,112140.0,0.44326667]
[1759137877897,1.63601595,112150.0,112140.0,0.18551207]
[1759137878194,1.63601595,112150.0,112140.0,0.44326667]
[1759137883395,1.63601595,112150.0,112140.0,0.3950959]
[1759137886010,1.27521595,112150.0,112140.0,0.3950959]
[1759137886210,1.63601595,112150.0,112140.0,0.3950959]
[1759137889010,0.82325595,112150.0,112140.0,0.3950959]
[1759137889211,1.63585595,112150.0,112140.0,0.3950959]
[1759137889510,1.37810135,112150.0,112140.0,0.6528505]
[1759137889711,1.54671405,112150.0,112140.0,0.6528505]
[1759137890012,1.54671405,112150.0,112140.0,0.1373413]
[1759137890213,1.54671405,112150.0,112140.0,0.6528505]
[1759137890409,0.73411405,112150.0,112140.0,0.6528505]
[1759137890602,1.54667405,112150.0,112140.0,0.6528505]
[1759137891514,0.73411405,112150.0,112140.0,0.6528505]
[1759137891714,1.54667405,112150.0,112140.0,0.6528505]
[1759137895918,1.54663405,112150.0,112140.0,0.6528505]
[1759137897318,0.46746241,112150.0,112140.0,0.6528505]
[1759137897519,0.001,112150.0,112140.0,1.7533964]
[1759137898417,0.001,112150.0,112140.0,2.51084139]
[1759137898621,0.86373478,112170.0,112160.0,0.125502]
[1759137898824,0.86373478,112170.0,112160.0,0.6410112]
[1759137899018,0.37442,112170.0,112160.0,0.6410112]
[1759137899223,0.37442,112170.0,112160.0,1.08911621]
[1759137899424,0.01362,112180.0,112170.0,0.125493]
[1759137899721,0.46733379,112190.0,112180.0,0.125485]
[1759137899924,1.27959567,112190.0,112180.0,0.6409942]
[1759137900125,0.46711567,112190.0,112180.0,1.0409942]
[1759137900326,0.47584699,112190.0,112180.0,1.0409942]
[1759137900623,0.73360159,112190.0,112180.0,0.43637]
[1759137900828,0.1027351,112180.0,112170.0,0.17359522]
[1759137901123,1.7915243,112180.0,112170.0,0.08447222]
[1759137901322,0.102743,112170.0,112160.0,0.17360312]
[1759137901527,0.7212976,112170.0,112160.0,0.17360312]
[1759137902026,0.74205169,112170.0,112160.0,0.17360312]
[1759137902227,0.74105169,112170.0,112160.0,0.17360312]
[1759137902639,0.74205169,112170.0,112160.0,0.1255009]
[1759137903429,0.74105169,112170.0,112160.0,0.1255009]
[1759137903628,0.74205169,112170.0,112160.0,0.1255009]
[1759137904828,0.74205169,112170.0,112160.0,0.03637]
[1759137905127,0.74205169,112170.0,112140.0,0.34222682]
[1759137905128,0.1027601,112150.0,112140.0,0.34222682]
[1759137905330,0.3605147,112150.0,112140.0,0.08447222]
[1759137905630,0.7213147,112150.0,112140.0,0.34222682]
[1759137905830,0.7213147,112150.0,112140.0,0.06154222]
[1759137906024,0.7213147,112150.0,112140.0,0.01344]
[1759137906431,0.7223147,112150.0,112140.0,0.02744]
[1759137906631,0.48503711,112150.0,112140.0,0.02744]